Cogmind - Beta 17 @@@ ROGUE MODE // 2026.08.14 @ 14:53:41 Player: Fedop Result: Destroyed by G9-H0A(j) with Overtuned Pulse Rifle Performance ------------- Evolutions (0) 0 Regions Visited (4) 800 Robots Destroyed (28) 140 Value Destroyed (550) 550 Prototype IDs (5) 100 Alien Tech Used (0) 0 Bonus (167) 167 TOTAL SCORE: 1757 Bonus ------- Follower Combat Kills 167 Cogmind --------- Core Integrity 0/250 Matter 295/300 Energy 100/100 System Corruption 0% Temperature Cool (12) Movement Rolling (95) Ox1 Location -9/Recycling Parts ------- > --- POWER (1) -------- (None) > --- PROPULSION (2) --- Wheel > --- UTILITY (2) ------ Scrap Engine > --- WEAPON (2) ------- Subdweller Shrapnel Launcher Makeshift Sword > --- INVENTORY (5) ---- Light Ion Engine Targeting Computer EM Shotgun EM Shotgun Mining Laser Peak State ------------ > --- POWER ------------ Light Ion Engine > --- PROPULSION ------- Wheel > --- UTILITY ---------- Scrap Engine > --- WEAPON ----------- Subdweller Shrapnel Launcher Makeshift Sword > --- INVENTORY -------- Light Ion Engine Targeting Computer EM Shotgun EM Shotgun Mining Laser [Rating: 26] Favorites ----------- Power Light Ion Engine Engine Light Ion Engine Propulsion Wheel Wheel Wheel Utility Structural Scanner Device Structural Scanner Storage Small Storage Unit Processor Visual Processing Unit Protection Scrap Shield Weapon Assault Rifle Energy Gun Medium Laser Ballistic Gun Assault Rifle Launcher Subdweller Shrapnel Launcher Special Weapon Mining Laser Slashing Weapon Makeshift Sword Build | -11 -10 -10 -10 -9 ------- Run | Yrd Mat Min Sub Rec Slots Evolved . | . . . . . Power . | . . . . . Propulsion . | . . . . . Utility . | . . . . . Weapon . | . . . . . Parts Attached 30 | 7 12 2 8 1 Power 2 | 2 . . . . Engine 2 | 2 . . . . Core . | . . . . . Reactor . | . . . . . Propulsion 8 | 2 3 1 2 . Treads . | . . . . . Leg . | . . . . . Wheel 8 | 2 3 1 2 . Hover . | . . . . . Flight . | . . . . . Utility 10 | 1 5 . 3 1 Device 5 | . 3 . 1 1 Storage 1 | 1 . . . . Processor 1 | . 1 . . . Hackware . | . . . . . Protection 3 | . 1 . 2 . Artifact . | . . . . . Weapon 10 | 2 4 1 3 . Energy Gun 3 | 1 1 . 1 . Energy Cannon . | . . . . . Ballistic Gun 2 | 1 1 . . . Ballistic Cannon . | . . . . . Launcher 2 | . . 1 1 . Special Weapon 2 | . 2 . . . Impact Weapon . | . . . . . Slashing Weapon 1 | . . . 1 . Piercing Weapon . | . . . . . Special Melee Weapon . | . . . . . Unidentified Prototypes 1 | . . . . 1 Parts Lost 12 | . 8 . 2 2 Power 2 | . 1 . . 1 Propulsion 4 | . 3 . . 1 Utility 2 | . 1 . 1 . Weapon 4 | . 3 . 1 . Highest Loss Streak 4 | . 4 . 1 2 To Critical Strikes . | . . . . . Average Backups 4 | 2 3 5 4 3 Power . | . . . . . Propulsion . | . . 1 . . Utility 1 | . . 1 1 1 Weapon 1 | . . 1 1 2 Tool/Special . | . . . . . Unused Backups 8 | . 2 . 2 4 Power 2 | . 1 . . 1 Propulsion 1 | . 1 . . . Utility 1 | . . . . 1 Weapon 3 | . . . 1 2 Tool/Special 1 | . . . 1 . Average Slot Usage (%) 93 | . 97 100 90 91 Engine 14 | . 14 14 14 14 Wheel 27 | . 26 28 28 28 Device 12 | . 20 14 6 12 Processor 4 | . 3 14 5 . Protection 5 | . 2 . 7 7 Energy Gun 4 | . 13 1 1 . Ballistic Gun 6 | . 14 14 2 . Launcher 8 | . . 11 11 14 Special Weapon 3 | . . 1 7 . Slashing Weapon 4 | . . . 4 14 Peak Build Rating 26 | 6 8 8 14 26 Average Rating 9 | 4 7 8 10 12 On Entrance 7 | . 6 8 8 13 Avg Prop Armor Cover (%) 4 | . 4 4 . . Naked Turns . | . . . . . Heaviest Build 31 | 14 14 9 31 31 Greatest Support 30 | 20 26 20 30 20 Greatest Overweight (x) 4 | 4 1 . 1 1 Average Overweight (x) . | . . . . . Largest Inventory Capacity 8 | 8 8 5 5 5 Average Capacity 5 | 7 5 5 5 5 Most Carried 5 | 5 5 5 5 5 Average Carried 4 | 2 3 4 4 3 Final Capacity 8 | 8 5 5 5 5 Final Carried 5 | 5 5 5 3 5 Class Distribution -------------------- 78% | Mutant 15% | Subdweller-Mutant 6% | Scavenger-Mutant Dominant Class ---------------- Mutant | -10/Materials Mutant | -10/Mines Mutant | -10/Subcaves Mutant | -9/Recycling Resources | -11 -10 -10 -10 -9 ----------- Run | Yrd Mat Min Sub Rec Matter Collected 1030 | 300 274 50 182 224 Remotely . | . . . . . Salvage Created 967 | 153 695 . 119 . Parts 49 | 7 34 . 8 . Haulers Intercepted 1 | . 1 . . . Recyclers Shooed 1 | . 1 . . . Parts Field Recycled . | . . . . . Retrieved Matter . | . . . . . Parts Self-Destructed 9 | . . . 9 . Prevented . | . . . . . Parts Restored . | . . . . . Kills | -11 -10 -10 -10 -9 ------- Run | Yrd Mat Min Sub Rec Combat Hostiles Destroyed 15 | . 8 . 7 . Guns 9 | . 8 . 1 . AOE 6 | . . . 6 . Classes Destroyed 8 | 3 3 . 2 . Worker 5 | 2 3 . . . Tunneler 1 | 1 . . . . Hauler 1 | . 1 . . . Recycler 3 | 1 2 . . . Turret 2 | . . . 2 . Watcher 1 | . 1 . . . Swarmer 5 | . . . 5 . Grunt 10 | . 8 . 2 . Best Kill Streak 5 | 2 4 . 5 . Combat Bots Only 3 | . 3 . 3 . Max Kills in Single Turn 4 | 2 1 . 4 . Gunslinging . | . . . . . Exploded 2 | . . . 2 . Melee . | . . . . . Uniques/NPCs Destroyed . | . . . . . Combat | -11 -10 -10 -10 -9 -------- Run | Yrd Mat Min Sub Rec Hostile Shots Fired 121 | . 64 . 47 10 Missed 24 | . 7 . 14 3 Hits 97 | . 57 . 33 7 Projectile 97 | . 57 . 33 7 Critical Strikes 2 | . 1 . . 1 Damage Taken 1487 | . 709 . 636 142 Core 252 | . 153 . 36 63 Absorbed by Shields . | . . . . . Core Remaining (%) 100 | 100 . . . . Volleys Fired 138 | 10 70 2 56 . Largest 2 | 2 2 2 2 . Hottest 100 | 70 100 100 100 . Shots Fired 218 | 20 135 3 60 . Gun 152 | 20 126 2 4 . Cannon . | . . . . . Launcher 14 | . . . 14 . Special 52 | . 9 1 42 . Kinetic 91 | 10 68 1 12 . Thermal 123 | 10 67 2 44 . Explosive 4 | . . . 4 . Electromagnetic . | . . . . . Robot Hit Streak 11 | 3 11 3 4 . Robot Miss Streak 3 | 2 3 . 3 . Penetration Max . | . . . . . Secondary Targets . | . . . . . Shots Hit Robots 99 | 11 81 2 5 . Core Hits 48 | 5 30 1 12 . Critical Kills . | . . . . . Critical Parts Destroyed . | . . . . . Critical Strikes 4 | . 4 . . . Burn 4 | . 4 . . . Melee Attacks 1 | . . . . 1 Impact . | . . . . . Slashing 1 | . . . . 1 Piercing . | . . . . . Sneak Attacks . | . . . . . Combat Hostiles . | . . . . . Follow-up Attacks . | . . . . . Damage Inflicted 1812 | 147 966 22 677 . Guns 1149 | 147 950 22 30 . Cannons . | . . . . . Explosions 647 | . . . 647 . Melee . | . . . . . Ramming 3 | . 3 . . . Kinetic 1195 | 74 505 12 604 . Thermal 556 | 73 458 10 15 . Explosive 58 | . . . 58 . Electromagnetic . | . . . . . Impact . | . . . . . Slashing . | . . . . . Piercing . | . . . . . Highest Corruption . | . . . . . Average Corruption . | . . . . . Corruption Purged . | . . . . . Corruption Blocked . | . . . . . Overload Shots . | . . . . . Overflow Damage 52 | . . . 52 . Projectiles . | . . . . . Explosions 52 | . . . 52 . Melee . | . . . . . Knockbacks . | . . . . . Impact . | . . . . . Kinetic . | . . . . . Secondary . | . . . . . Self-Inflicted Damage 188 | . 1 . 187 . Shots 5 | . . . 5 . Rammed 1 | . 1 . . . Targets Rammed 1 | . 1 . . . Kicked . | . . . . . Crushed . | . . . . . Highest Temperature 236 | 61 236 20 . 17 Average Temperature 68 | 31 85 12 . 9 Received Heat Transfer 622 | . 420 . 93 109 Siege Activations . | . . . . . Martial Activations . | . . . . . Shielding Activations . | . . . . . Robots Disrupted . | . . . . . Combat Hostiles . | . . . . . Robots Corrupted . | . . . . . Combat Hostiles . | . . . . . Parts Fried . | . . . . . Impact Corruptions . | . . . . . Robots Melted . | . . . . . Combat Hostiles . | . . . . . Parts Melted 3 | . 3 . . . Heat Transferred 1941 | 222 1657 25 37 . Parts Sabotaged . | . . . . . Parts Stolen . | . . . . . Parts Stripped . | . . . . . Power Chain Reactions . | . . . . . Alert | -11 -10 -10 -10 -9 ------- Run | Yrd Mat Min Sub Rec Maximum Alert Level . | . . . . . Low Security (%) 100 | 100 100 100 . 100 Level 1 . | . . . . . Level 2 . | . . . . . Level 3 . | . . . . . Level 4 . | . . . . . Level 5 . | . . . . . High Security . | . . . . . Max Security . | . . . . . Peak Influence 115 | 10 115 58 . 23 Initial 23 | . . 8 . 23 Average 19 | 1 41 3 . 1 Influence Increases 724 | 20 335 58 299 12 Destroy 0b10 Robot/C 440 | . 160 40 240 . Destroy 0b10 Robot/NC 55 | 20 35 . . . Destroy Leader 64 | . 34 10 20 . Allied During Kill 17 | . . 8 9 . Successful Hack 12 | . . . . 12 Destroy Structure 1 | . 1 . . . Lose Combat Pursuer 135 | . 105 . 30 . Influence Decreases 724 | 20 312 33 298 61 Entered New Map 67 | . . 15 26 26 Time Decay 547 | 20 232 18 242 35 Lost Part 90 | . 80 . 10 . Lost Ally 20 | . . . 20 . Squads Dispatched 1 | . 1 . . . Investigation . | . . . . . Extermination . | . . . . . Reinforcement 1 | . 1 . . . Assault . | . . . . . Garrison . | . . . . . Intercept . | . . . . . Searches Triggered . | . . . . . Construction Impeded . | . . . . . Haulers Reinforced . | . . . . . Active Scanning Responses . | . . . . . Cargo Convoy Interrupts . | . . . . . Stealth | -11 -10 -10 -10 -9 --------- Run | Yrd Mat Min Sub Rec Distress Signals . | . . . . . Communications Jammed . | . . . . . Distress Signals . | . . . . . Times Spotted 46 | . 22 4 16 4 Peak Tracking Total 6 | . 4 2 6 4 Tactical Retreats 5 | . 4 . 1 . Traps | -11 -10 -10 -10 -9 ------- Run | Yrd Mat Min Sub Rec Traps Triggered . | . . . . . Indirectly . | . . . . . Trap Hack Attempts . | . . . . . Triggered . | . . . . . Disarmed . | . . . . . Reprogrammed . | . . . . . Reused . | . . . . . Traps Extracted . | . . . . . Installed . | . . . . . Triggered . | . . . . . Machines | -11 -10 -10 -10 -9 ---------- Run | Yrd Mat Min Sub Rec Machines Disabled 4 | . . . 4 . Max in Single Turn 3 | . . . 3 . Machines Repaired . | . . . . . Machines Dismantled . | . . . . . Machines Sabotaged . | . . . . . Overloaded Fab Kills . | . . . . . Hacking | -11 -10 -10 -10 -9 --------- Run | Yrd Mat Min Sub Rec Machines Accessed 15 | . 4 . 1 10 Terminals 9 | . 4 . . 5 Fabricators . | . . . . . Repair Stations . | . . . . . Recycling Units 3 | . . . . 3 Scanalyzers . | . . . . . Garrison Access . | . . . . . Total Hacks 54 | . 11 . 4 39 Successful 40 | . 4 . 4 32 Failed 14 | . 7 . . 7 Catastrophic 5 | . 1 . . 4 Database Lockouts . | . . . . . Manual 5 | . 1 . . 4 Terminals 21 | . 11 . . 10 Fabricators . | . . . . . Repair Stations . | . . . . . Recycling Units 3 | . . . . 3 Scanalyzers . | . . . . . Garrison Access . | . . . . . Terminal Hacks 37 | . 4 . 4 29 Record 28 | . . . 4 24 Robot Analysis 1 | . 1 . . . Prototype ID Bank 2 | . 1 . . 1 Locate Traps 1 | . 1 . . . Hauler Manifests 1 | . 1 . . . Registered Components 1 | . . . . 1 Zone Layout 1 | . . . . 1 Release Object 2 | . . . . 2 Fabricator Hacks . | . . . . . Repair Station Hacks . | . . . . . Recycling Unit Hacks 3 | . . . . 3 Report Inventory 3 | . . . . 3 Scanalyzer . | . . . . . Garrison Access Hacks . | . . . . . Unauthorized Hacks . | . . . . . Terminals . | . . . . . Fabricators . | . . . . . Repair Stations . | . . . . . Recycling Units . | . . . . . Scanalyzers . | . . . . . Garrison Access . | . . . . . Data Cores Recovered . | . . . . . Used . | . . . . . Hacking Detections 10 | . 4 . . 6 Full Trace Events . | . . . . . Feedback Events . | . . . . . Feedback Blocked . | . . . . . Robot Schematics Acquired . | . . . . . Robots Built . | . . . . . Authchips . | . . . . . Time . | . . . . . Total Robot Build Rating . | . . . . . Part Schematics Acquired . | . . . . . Parts Built . | . . . . . Authchips . | . . . . . Time . | . . . . . Total Part Build Rating . | . . . . . Part Studies Acquired . | . . . . . Parts Repaired . | . . . . . Time . | . . . . . Parts Recycled . | . . . . . Recycled Matter . | . . . . . Retrieved Matter . | . . . . . Retrieved Components . | . . . . . Parts Scanalyzed . | . . . . . Part Schematics Acquired . | . . . . . Parts Damaged . | . . . . . Bothacking | -11 -10 -10 -10 -9 ------------ Run | Yrd Mat Min Sub Rec Used RIF Installer . | . . . . . Robots Hacked . | . . . . . Non-combat . | . . . . . Combat . | . . . . . Robot Hacks Applied . | . . . . . Relay Couplers Released . | . . . . . Fabnet Peak Effective % . | . . . . . Robots Rewired . | . . . . . Allies Hacked . | . . . . . Hacks Repelled . | . . . . . Allies | -11 -10 -10 -10 -9 -------- Run | Yrd Mat Min Sub Rec Total Allies 3 | . . 3 . . Largest Group 3 | . . 3 3 . Highest-Rated Group 40 | . . 40 40 . Highest-Rated Ally 16 | . . 16 16 . Total Orders . | . . . . . Ally Attacks 50 | . . 14 36 . Total Damage 520 | . . 154 366 . Kills 7 | . . 2 5 . Allies Corrupted . | . . . . . Allies Melted . | . . . . . Intel | -11 -10 -10 -10 -9 ------- Run | Yrd Mat Min Sub Rec Active Infowar (turns) 1562 | . 652 262 428 220 Optics 1046 | . 185 262 427 172 Terrain 124 | . 124 . . . Structural 1547 | . 652 262 413 220 Robot Analysis Total 1 | . 1 . . . Derelict Logs Recovered . | . . . . . Drone Launches . | . . . . . Drone Recoveries . | . . . . . Exploration | -11 -10 -10 -10 -9 ------------- Run | Yrd Mat Min Sub Rec Turns Passed 2578 | 125 662 262 1034 495 Spaces Moved 2233 | 83 491 295 863 501 Core 22 | 22 . . . . Treads . | . . . . . Legs . | . . . . . Wheels 2211 | 61 491 295 863 501 Hover . | . . . . . Flight . | . . . . . Fastest Speed 50 | 50 80 80 80 80 Average Speed 86 | 96 81 80 89 87 Slowest Speed 250 | 250 95 80 110 95 Overloaded Moves . | . . . . . Propulsion Burnouts . | . . . . . Robots Hopped . | . . . . . Potential Cave-ins . | . . . . . Cave-ins Triggered . | . . . . . Exploration Rate (%) 51 | 4 62 60 40 91 Regions Visited 4 Branch Regions 3 Pre-discovered Areas . | . . . . . Known Exits Taken . | . . . . . Unknown Exits Taken 4 | 1 1 1 1 . Scrap Searched 4 | . . . 4 . Spaces Dug 1 | . 1 . . . Terrain Destroyed 103 | . 1 . 102 . Melee . | . . . . . Projectile 1 | . 1 . . . AOE 102 | . . . 102 . Terrain Rammed . | . . . . . Walls Destroyed . | . . . . . Machines Disabled . | . . . . . Actions | -11 -10 -10 -10 -9 --------- Run | Yrd Mat Min Sub Rec Total 2566 | 104 612 314 977 559 Wait 111 | . 25 11 28 47 Move 2229 | 82 490 294 862 501 Hop . | . . . . . Pick Up 19 | 5 8 1 1 4 Fast Attach 20 | 6 5 1 7 1 Attach 10 | . 6 . 2 2 Detach 4 | . 1 . 3 . Swap 11 | 1 2 3 5 . Drop 18 | . 4 2 9 3 Fire 138 | 10 70 2 56 . Melee 1 | . . . . 1 Ram 1 | . 1 . . . Kick . | . . . . . Crush . | . . . . . Escape Stasis . | . . . . . Rewire 2 | . . . 2 . Trap . | . . . . . Miscellaneous 2 | . . . 2 . Route ------- -11/Scrapyard -10/Materials (discovered 4 exits: [*Mat x2] / [*Min] / Sub) -10/Mines -10/Subcaves -9/Recycling (discovered 1 exit: [*Fac]) History --------- Turn | Location | Event 8 | -11/Scrapyard | Discovered new exit (range 16) 126 | -11/Scrapyard | Entered Materials 316 | -10/Materials | Build established: Mutant 371 | -10/Materials | Discovered new exit (range 12) 533 | -10/Materials | Core integrity fell below 50% 586 | -10/Materials | Lost 4 parts (1p1n2w) 630 | -10/Materials | Discovered new exit (range 15) 768 | -10/Materials | Discovered new exit (range 13) 775 | -10/Materials | Discovered new exit (range 3) 788 | -10/Materials | Entered Mines 796 | -10/Mines | Joined a pair of Derelicts in attacking an 0b10 outpost 947 | -10/Mines | Assisted by bots powering up and referring to "LRC-V3" 1026 | -10/Mines | Discovered new exit (range 9) 1050 | -10/Mines | Entered Subcaves 1050 | -10/Subcaves | Accompanied by 3 allies 1051 | -10/Subcaves | Approached by a straggling Scientist 1130 | -10/Subcaves | Visited Clippyterm 1132 | -10/Subcaves | Learned Factory trap positions 1132 | -10/Subcaves | Learned Research security intel 1284 | -10/Subcaves | Shifting Twisted Machinery released Sub. Beam Cannon 1345 | -10/Subcaves | Shifting Twisted Machinery released Battle Rifle 1425 | -10/Subcaves | Disturbed a concealed Subdweller 1579 | -10/Subcaves | A swath of the cavern ceiling suddenly collapsed 1682 | -10/Subcaves | Shifting Twisted Machinery released Scrap Shield 1734 | -10/Subcaves | Build established: Subdweller-Mutant 1835 | -10/Subcaves | Discovered new exit (range 10) 2070 | -10/Subcaves | A Subdweller sparked back to life 2070 | -10/Subcaves | A Subdweller sparked back to life 2070 | -10/Subcaves | A Subdweller sparked back to life 2084 | -10/Subcaves | Entered Recycling 2085 | -9/Recycling | Met a Zionite searching for Scraptown 2119 | -9/Recycling | Build established: Mutant 2313 | -9/Recycling | Discovered new exit (range 16) 2383 | -9/Recycling | Scanned before Scraplab entrance 2535 | -9/Recycling | Discovered new exit (range 11) 2537 | -9/Recycling | Entered Scraplab 2569 | -9/Recycling | Angered Scraplab inhabitants 2572 | -9/Recycling | Found Prototype Device 2572 | -9/Recycling | Identified Scrap Engine 2576 | -9/Recycling | Core integrity fell below 20% 2579 | -9/Recycling | Destroyed by G9-H0A(j) with Overtuned Pulse Rifle Last Messages --------------- provide more color on that. 02558_ IL-NV6(c) is busy at their terminal. 02569_ Connecting with Scraplab SEP... >>Release Inventory Accessing inventory controls... Prototype released... URGENT: Link to external system right away! 02570_ M5-7P9(j): "Defend the Scraplab!" Prototype Device integrity failing. 02571_ Dropped Broken Sub. Optics. 02571_ Wheel destroyed. 02571_ Dropped Structural Scanner. 02572_ Acquired Prototype Device. 02572_ Identified Scrap Engine. 02573_ Critical hit (Burn: +50). 02575_ Lgt. Ion Engine destroyed. 02577_ BN-OIV(j) heat short circuits Ovr. Titanium Leg. 02578_ Machine disabled. 02578_ BN-OIV(j) overheating. Map ----- +----------------------------------------------------+ | ##########????????????????????? | | ! ! ! #????????????????????? | | !! #????????????????????? | | ! ! ! #????????????????????? | | !#????????????????????? | | #????????????????????? | | ! #????????????????????? | | !! #????????????????????? | | ! ! ! ###??????????????????? | | ####+#######??????????????????? | | ##??????????????????? | | < ##??????????????????? | | ##??????????????????? | | #########??????????????????? | | ##########?########????????? | | ""########?########????????? | | Y"##### ##?## #######???? | | ""## ##### ########??? | | #### ##### #### ###??? | | #### # + # ##??? | | #### # ### ##### ##??? | | #### # ### ##### ##??? | | #### # ### ##?##j##??? | | ### # ############ ##### | | ### # ############/##### | | ### + ##????##"" @ "## | | + ####????##"& j "## | | ### ####????##" "## | | ##########??????##"" !X"## | | ###########?????##"& ! "## | | ###########?????##" ""## | | # ##?????##"X j "## | | # [ ##?????##" c#### | | +! ##?????## ""c #"## | | # ##?????## """ ## | | # ##?????############ | | #[ [ ##?????############ | | # ##????????????????? | | # [! ##????????????????? | | # ##????????????????? | | ###########????????????????? | | ###########????????????????? | | ! ##???????????????????????? | | ! #########????????????????? | | ! #########????????????????? | | ##### ## ##????????????????? | | + ##????????????????? | | # ##????????????????? | | # ##????????????????? | | # ##????????????????? | +----------------------------------------------------+ Best States ------------- Heat Dissipation 35 Energy Generation 10 Energy Capacity 250 Matter Stores 300 Matter Capacity 300 Sight Range 21 Terrain Scan Range 14 Terrain Scan Density 10 Armor Coverage 800 Utility Shielding 33 Evasion (%) 44 Item Schematics ----------------- None Robot Schematics ------------------ None Fabricated ------------ Nothing Repaired ---------- Nothing Studied --------- None Alien Tech Used ----------------- None Achievements -------------- Survival Of The Most Covered You May Approach The Wall Challenges ------------ None Game ------ Seed GrapheneEfficiencyAutohacker Manual? 0 Play Time 00:51:00 Cumulative 40.9 hours Start 2026.08.14 @ 12:03:05 End 2026.08.14 @ 14:53:41 Sessions 5 Manual Loads 0 Difficulty Rogue Special Mode None Game No. 32 Rogue 32 Adventurer 0 Explorer 0 Win Type - Total 0 Types 0/0/0/0/0/0/0/0/0/0 Lore% 14 Gallery% 26 Achievement% 20 Wizard Run 0 Options --------- Layout 1 ASCII 0 Keyboard 1 Movement Vi Keybinds 0 Fullscreen 2 Font 24/Smallcaps Map View 50x35 Zoom Use 0% Tactical HUD 1 Map Filters NONE Filters NONE Steam 1 RUN: f396d875-b2c8-488f-98dc-97c9901c469f